{"text_format":"3","workbook":"xlsx","n_sheets":8,"sheets":["Nortern Region","Gauteng","Central","KZN","Eastern Cape","Western & Northern Cape","Sheet1","Sedans"],"read":"whole","date_system":"1900"}

{"sheet":"Nortern Region","index":0,"n_rows":35,"n_cols":10,"rows_kept":35,"merged":[[0,1,0,3],[3,1,3,9],[9,1,9,9],[14,1,14,2],[15,1,15,2],[16,1,16,2],[17,1,17,2],[18,1,18,2],[19,0,19,2],[24,1,24,8]]}
[null,"RFQ No. Short Term Rental of Vehicles "]
[null,"Annexure A - Gauteng"]
[null,"Vehicle Type"," Km per Month","Rental cost per MONTH (including tracking) per vehicle ","*Other Cost per month per vehicle                (Once off-supply breakdown below if applicable)","Total Monthly Rental Cost PER VEHICLE                 excl Vat","VAT","Total Monthly Rental Cost PER VEHICLE incl Vat","Vehicle delivery and Collection charge per vehicle","Excess Km Rate when contracted km exceeded"]
[null,"Light Commercial Vehicles"]
[null,"7 Seat vehicle - for transportation of Postmen with bags",2500,{"v":1,"d":"1.00"},{"v":1,"d":"1.00"},{"$f":"D5+E5","v":{"v":2,"d":"2.00"}},{"$f":"F5*0.15","v":{"v":0.3,"d":"0.30"}},{"$f":"G5+F5","v":{"v":2.3,"d":"2.30"}}]
[null,"7 Seat vehicle - for transportation of Postmen with bags",5000,null,null,{"$f":"D6+E6","v":{"v":0,"d":"0.00"}},{"$f":"F6*0.15","v":{"v":0,"d":"0.00"}},{"$f":"G6+F6","v":{"v":0,"d":"0.00"}}]
[null,"1/2 ton Bakkie with canopy – courier type canopy with NO glass windows",2500,null,null,{"$f":"D7+E7","v":{"v":0,"d":"0.00"}},{"v":0,"d":"0.00"},{"v":0,"d":"0.00"}]
[null,"1 ton  Bakkie with canopy – High rise courier type canopy with NO glass windows",2500,null,null,{"$f":"D8+E8","v":{"v":0,"d":"0.00"}},{"v":0,"d":"0.00"},{"v":0,"d":"0.00"}]
[null,"1 ton  Bakkie with canopy – High rise courier type canopy with NO glass windows",5000,null,null,{"$f":"D9+E9","v":{"v":0,"d":"0.00"}},{"v":0,"d":"0.00"},{"v":0,"d":"0.00"}]
[null,"Heavy Commercial Vehicles"]
[null,"2.5 ton Panel van",2500,null,null,{"$f":"D11+E11","v":{"v":0,"d":"0.00"}},{"v":0,"d":"0.00"},{"$f":"G11+F11","v":{"v":0,"d":"0.00"}}]
[null,"4 ton freight truck with tail lift",2500,null,null,{"$f":"D12+E12","v":{"v":0,"d":"0.00"}},{"v":0,"d":"0.00"},{"v":0,"d":"0.00"}]
[null,"8 ton freight truck with tail lift",2500,null,null,{"$f":"D13+E13","v":{"v":0,"d":"0.00"}},{"v":0,"d":"0.00"},{"v":0,"d":"0.00"}]
[]
[null,"*Other service Costs  (supply breakdown)"]
[1]
[2]
[3]
[4]
["Total Other cost (corresponding with Column G)"]
[]
[null,"The Bidder warrants that the pricing quoted above is free of any errors or omissions and"]
[null," that he/she is able to deliver the contract on the prices quoted."]
[]
[null,"Quote rates Inclusive value added tax (VAT);"]
[]
[null,"NAME OF DELEGATED SIGNATORY (PRINT) :…………………………………………………………………."]
[null,"in his capacity as"]
[]
[null,"DESIGNATION OF SIGNATORY (PRINT) :……………………………………………......................"]
[null,"who warrants his authority to sign on behalf of "]
[]
[null,"NAME OF BIDDER (COMPANY) :……………………………………………………………"]
[]
[null,"DATE :……………………………………………………………"]

{"sheet":"Gauteng","index":1,"n_rows":35,"n_cols":10,"rows_kept":35,"merged":[[0,1,0,3],[3,1,3,9],[9,1,9,9],[14,1,14,2],[15,1,15,2],[16,1,16,2],[17,1,17,2],[18,1,18,2],[19,0,19,2],[24,1,24,8]]}
[null,"RFQ No. Short Term Rental of Vehicles "]
[null,"Annexure A - Gauteng"]
[null,"Vehicle Type"," Km per Month","Rental cost per MONTH (including tracking) per vehicle ","*Other Cost per month per vehicle                (Once off-supply breakdown below if applicable)","Total Monthly Rental Cost PER VEHICLE                 excl Vat","VAT","Total Monthly Rental Cost PER VEHICLE incl Vat","Vehicle delivery and Collection charge per vehicle","Excess Km Rate when contracted km exceeded"]
[null,"Light Commercial Vehicles"]
[null,"7 Seat vehicle - for transportation of Postmen with bags",2500,{"v":1,"d":"1.00"},{"v":1,"d":"1.00"},{"$f":"D5+E5","v":{"v":2,"d":"2.00"}},{"$f":"F5*0.15","v":{"v":0.3,"d":"0.30"}},{"$f":"G5+F5","v":{"v":2.3,"d":"2.30"}}]
[null,"7 Seat vehicle - for transportation of Postmen with bags",5000,null,null,{"$f":"D6+E6","v":{"v":0,"d":"0.00"}},{"$f":"F6*0.15","v":{"v":0,"d":"0.00"}},{"$f":"G6+F6","v":{"v":0,"d":"0.00"}}]
[null,"1/2 ton Bakkie with canopy – courier type canopy with NO glass windows",2500,null,null,{"$f":"D7+E7","v":{"v":0,"d":"0.00"}},{"v":0,"d":"0.00"},{"v":0,"d":"0.00"}]
[null,"1 ton  Bakkie with canopy – High rise courier type canopy with NO glass windows",2500,null,null,{"$f":"D8+E8","v":{"v":0,"d":"0.00"}},{"v":0,"d":"0.00"},{"v":0,"d":"0.00"}]
[null,"1 ton  Bakkie with canopy – High rise courier type canopy with NO glass windows",5000,null,null,{"$f":"D9+E9","v":{"v":0,"d":"0.00"}},{"v":0,"d":"0.00"},{"v":0,"d":"0.00"}]
[null,"Heavy Commercial Vehicles"]
[null,"2.5 ton Panel van",2500,null,null,{"$f":"D11+E11","v":{"v":0,"d":"0.00"}},{"v":0,"d":"0.00"},{"$f":"G11+F11","v":{"v":0,"d":"0.00"}}]
[null,"4 ton freight truck with tail lift",2500,null,null,{"$f":"D12+E12","v":{"v":0,"d":"0.00"}},{"v":0,"d":"0.00"},{"v":0,"d":"0.00"}]
[null,"8 ton freight truck with tail lift",2500,null,null,{"$f":"D13+E13","v":{"v":0,"d":"0.00"}},{"v":0,"d":"0.00"},{"v":0,"d":"0.00"}]
[]
[null,"*Other service Costs  (supply breakdown)"]
[1]
[2]
[3]
[4]
["Total Other cost (corresponding with Column G)"]
[]
[null,"The Bidder warrants that the pricing quoted above is free of any errors or omissions and"]
[null," that he/she is able to deliver the contract on the prices quoted."]
[]
[null,"Quote rates Inclusive value added tax (VAT);"]
[]
[null,"NAME OF DELEGATED SIGNATORY (PRINT) :…………………………………………………………………."]
[null,"in his capacity as"]
[]
[null,"DESIGNATION OF SIGNATORY (PRINT) :……………………………………………......................"]
[null,"who warrants his authority to sign on behalf of "]
[]
[null,"NAME OF BIDDER (COMPANY) :……………………………………………………………"]
[]
[null,"DATE :……………………………………………………………"]

{"sheet":"Central","index":2,"n_rows":35,"n_cols":10,"rows_kept":35,"merged":[[0,1,0,3],[3,1,3,9],[9,1,9,9],[14,1,14,2],[15,1,15,2],[16,1,16,2],[17,1,17,2],[18,1,18,2],[19,0,19,2],[24,1,24,8]]}
[null,"RFQ No. Short Term Rental of Vehicles "]
[null,"Annexure A - Gauteng"]
[null,"Vehicle Type"," Km per Month","Rental cost per MONTH (including tracking) per vehicle ","*Other Cost per month per vehicle                (Once off-supply breakdown below if applicable)","Total Monthly Rental Cost PER VEHICLE                 excl Vat","VAT","Total Monthly Rental Cost PER VEHICLE incl Vat","Vehicle delivery and Collection charge per vehicle","Excess Km Rate when contracted km exceeded"]
[null,"Light Commercial Vehicles"]
[null,"7 Seat vehicle - for transportation of Postmen with bags",2500,{"v":1,"d":"1.00"},{"v":1,"d":"1.00"},{"$f":"D5+E5","v":{"v":2,"d":"2.00"}},{"$f":"F5*0.15","v":{"v":0.3,"d":"0.30"}},{"$f":"G5+F5","v":{"v":2.3,"d":"2.30"}}]
[null,"7 Seat vehicle - for transportation of Postmen with bags",5000,null,null,{"$f":"D6+E6","v":{"v":0,"d":"0.00"}},{"$f":"F6*0.15","v":{"v":0,"d":"0.00"}},{"$f":"G6+F6","v":{"v":0,"d":"0.00"}}]
[null,"1/2 ton Bakkie with canopy – courier type canopy with NO glass windows",2500,null,null,{"$f":"D7+E7","v":{"v":0,"d":"0.00"}},{"v":0,"d":"0.00"},{"v":0,"d":"0.00"}]
[null,"1 ton  Bakkie with canopy – High rise courier type canopy with NO glass windows",2500,null,null,{"$f":"D8+E8","v":{"v":0,"d":"0.00"}},{"v":0,"d":"0.00"},{"v":0,"d":"0.00"}]
[null,"1 ton  Bakkie with canopy – High rise courier type canopy with NO glass windows",5000,null,null,{"$f":"D9+E9","v":{"v":0,"d":"0.00"}},{"v":0,"d":"0.00"},{"v":0,"d":"0.00"}]
[null,"Heavy Commercial Vehicles"]
[null,"2.5 ton Panel van",2500,null,null,{"$f":"D11+E11","v":{"v":0,"d":"0.00"}},{"v":0,"d":"0.00"},{"$f":"G11+F11","v":{"v":0,"d":"0.00"}}]
[null,"4 ton freight truck with tail lift",2500,null,null,{"$f":"D12+E12","v":{"v":0,"d":"0.00"}},{"v":0,"d":"0.00"},{"v":0,"d":"0.00"}]
[null,"8 ton freight truck with tail lift",2500,null,null,{"$f":"D13+E13","v":{"v":0,"d":"0.00"}},{"v":0,"d":"0.00"},{"v":0,"d":"0.00"}]
[]
[null,"*Other service Costs  (supply breakdown)"]
[1]
[2]
[3]
[4]
["Total Other cost (corresponding with Column G)"]
[]
[null,"The Bidder warrants that the pricing quoted above is free of any errors or omissions and"]
[null," that he/she is able to deliver the contract on the prices quoted."]
[]
[null,"Quote rates Inclusive value added tax (VAT);"]
[]
[null,"NAME OF DELEGATED SIGNATORY (PRINT) :…………………………………………………………………."]
[null,"in his capacity as"]
[]
[null,"DESIGNATION OF SIGNATORY (PRINT) :……………………………………………......................"]
[null,"who warrants his authority to sign on behalf of "]
[]
[null,"NAME OF BIDDER (COMPANY) :……………………………………………………………"]
[]
[null,"DATE :……………………………………………………………"]

{"sheet":"KZN","index":3,"n_rows":35,"n_cols":10,"rows_kept":35,"merged":[[0,1,0,3],[3,1,3,9],[9,1,9,9],[14,1,14,2],[15,1,15,2],[16,1,16,2],[17,1,17,2],[18,1,18,2],[19,0,19,2],[24,1,24,8]]}
[null,"RFQ No. Short Term Rental of Vehicles "]
[null,"Annexure A - Gauteng"]
[null,"Vehicle Type"," Km per Month","Rental cost per MONTH (including tracking) per vehicle ","*Other Cost per month per vehicle                (Once off-supply breakdown below if applicable)","Total Monthly Rental Cost PER VEHICLE                 excl Vat","VAT","Total Monthly Rental Cost PER VEHICLE incl Vat","Vehicle delivery and Collection charge per vehicle","Excess Km Rate when contracted km exceeded"]
[null,"Light Commercial Vehicles"]
[null,"7 Seat vehicle - for transportation of Postmen with bags",2500,{"v":1,"d":"1.00"},{"v":1,"d":"1.00"},{"$f":"D5+E5","v":{"v":2,"d":"2.00"}},{"$f":"F5*0.15","v":{"v":0.3,"d":"0.30"}},{"$f":"G5+F5","v":{"v":2.3,"d":"2.30"}}]
[null,"7 Seat vehicle - for transportation of Postmen with bags",5000,null,null,{"$f":"D6+E6","v":{"v":0,"d":"0.00"}},{"$f":"F6*0.15","v":{"v":0,"d":"0.00"}},{"$f":"G6+F6","v":{"v":0,"d":"0.00"}}]
[null,"1/2 ton Bakkie with canopy – courier type canopy with NO glass windows",2500,null,null,{"$f":"D7+E7","v":{"v":0,"d":"0.00"}},{"v":0,"d":"0.00"},{"v":0,"d":"0.00"}]
[null,"1 ton  Bakkie with canopy – High rise courier type canopy with NO glass windows",2500,null,null,{"$f":"D8+E8","v":{"v":0,"d":"0.00"}},{"v":0,"d":"0.00"},{"v":0,"d":"0.00"}]
[null,"1 ton  Bakkie with canopy – High rise courier type canopy with NO glass windows",5000,null,null,{"$f":"D9+E9","v":{"v":0,"d":"0.00"}},{"v":0,"d":"0.00"},{"v":0,"d":"0.00"}]
[null,"Heavy Commercial Vehicles"]
[null,"2.5 ton Panel van",2500,null,null,{"$f":"D11+E11","v":{"v":0,"d":"0.00"}},{"v":0,"d":"0.00"},{"$f":"G11+F11","v":{"v":0,"d":"0.00"}}]
[null,"4 ton freight truck with tail lift",2500,null,null,{"$f":"D12+E12","v":{"v":0,"d":"0.00"}},{"v":0,"d":"0.00"},{"v":0,"d":"0.00"}]
[null,"8 ton freight truck with tail lift",2500,null,null,{"$f":"D13+E13","v":{"v":0,"d":"0.00"}},{"v":0,"d":"0.00"},{"v":0,"d":"0.00"}]
[]
[null,"*Other service Costs  (supply breakdown)"]
[1]
[2]
[3]
[4]
["Total Other cost (corresponding with Column G)"]
[]
[null,"The Bidder warrants that the pricing quoted above is free of any errors or omissions and"]
[null," that he/she is able to deliver the contract on the prices quoted."]
[]
[null,"Quote rates Inclusive value added tax (VAT);"]
[]
[null,"NAME OF DELEGATED SIGNATORY (PRINT) :…………………………………………………………………."]
[null,"in his capacity as"]
[]
[null,"DESIGNATION OF SIGNATORY (PRINT) :……………………………………………......................"]
[null,"who warrants his authority to sign on behalf of "]
[]
[null,"NAME OF BIDDER (COMPANY) :……………………………………………………………"]
[]
[null,"DATE :……………………………………………………………"]

{"sheet":"Eastern Cape","index":4,"n_rows":35,"n_cols":10,"rows_kept":35,"merged":[[0,1,0,3],[3,1,3,9],[9,1,9,9],[14,1,14,2],[15,1,15,2],[16,1,16,2],[17,1,17,2],[18,1,18,2],[19,0,19,2],[24,1,24,8]]}
[null,"RFQ No. Short Term Rental of Vehicles "]
[null,"Annexure A - Gauteng"]
[null,"Vehicle Type"," Km per Month","Rental cost per MONTH (including tracking) per vehicle ","*Other Cost per month per vehicle                (Once off-supply breakdown below if applicable)","Total Monthly Rental Cost PER VEHICLE                 excl Vat","VAT","Total Monthly Rental Cost PER VEHICLE incl Vat","Vehicle delivery and Collection charge per vehicle","Excess Km Rate when contracted km exceeded"]
[null,"Light Commercial Vehicles"]
[null,"7 Seat vehicle - for transportation of Postmen with bags",2500,{"v":1,"d":"1.00"},{"v":1,"d":"1.00"},{"$f":"D5+E5","v":{"v":2,"d":"2.00"}},{"$f":"F5*0.15","v":{"v":0.3,"d":"0.30"}},{"$f":"G5+F5","v":{"v":2.3,"d":"2.30"}}]
[null,"7 Seat vehicle - for transportation of Postmen with bags",5000,null,null,{"$f":"D6+E6","v":{"v":0,"d":"0.00"}},{"$f":"F6*0.15","v":{"v":0,"d":"0.00"}},{"$f":"G6+F6","v":{"v":0,"d":"0.00"}}]
[null,"1/2 ton Bakkie with canopy – courier type canopy with NO glass windows",2500,null,null,{"$f":"D7+E7","v":{"v":0,"d":"0.00"}},{"v":0,"d":"0.00"},{"v":0,"d":"0.00"}]
[null,"1 ton  Bakkie with canopy – High rise courier type canopy with NO glass windows",2500,null,null,{"$f":"D8+E8","v":{"v":0,"d":"0.00"}},{"v":0,"d":"0.00"},{"v":0,"d":"0.00"}]
[null,"1 ton  Bakkie with canopy – High rise courier type canopy with NO glass windows",5000,null,null,{"$f":"D9+E9","v":{"v":0,"d":"0.00"}},{"v":0,"d":"0.00"},{"v":0,"d":"0.00"}]
[null,"Heavy Commercial Vehicles"]
[null,"2.5 ton Panel van",2500,null,null,{"$f":"D11+E11","v":{"v":0,"d":"0.00"}},{"v":0,"d":"0.00"},{"$f":"G11+F11","v":{"v":0,"d":"0.00"}}]
[null,"4 ton freight truck with tail lift",2500,null,null,{"$f":"D12+E12","v":{"v":0,"d":"0.00"}},{"v":0,"d":"0.00"},{"v":0,"d":"0.00"}]
[null,"8 ton freight truck with tail lift",2500,null,null,{"$f":"D13+E13","v":{"v":0,"d":"0.00"}},{"v":0,"d":"0.00"},{"v":0,"d":"0.00"}]
[]
[null,"*Other service Costs  (supply breakdown)"]
[1]
[2]
[3]
[4]
["Total Other cost (corresponding with Column G)"]
[]
[null,"The Bidder warrants that the pricing quoted above is free of any errors or omissions and"]
[null," that he/she is able to deliver the contract on the prices quoted."]
[]
[null,"Quote rates Inclusive value added tax (VAT);"]
[]
[null,"NAME OF DELEGATED SIGNATORY (PRINT) :…………………………………………………………………."]
[null,"in his capacity as"]
[]
[null,"DESIGNATION OF SIGNATORY (PRINT) :……………………………………………......................"]
[null,"who warrants his authority to sign on behalf of "]
[]
[null,"NAME OF BIDDER (COMPANY) :……………………………………………………………"]
[]
[null,"DATE :……………………………………………………………"]

{"sheet":"Western & Northern Cape","index":5,"n_rows":35,"n_cols":10,"rows_kept":35,"merged":[[0,1,0,3],[3,1,3,9],[9,1,9,9],[14,1,14,2],[15,1,15,2],[16,1,16,2],[17,1,17,2],[18,1,18,2],[19,0,19,2],[24,1,24,8]]}
[null,"RFQ No. Short Term Rental of Vehicles "]
[null,"Annexure A - Gauteng"]
[null,"Vehicle Type"," Km per Month","Rental cost per MONTH (including tracking) per vehicle ","*Other Cost per month per vehicle                (Once off-supply breakdown below if applicable)","Total Monthly Rental Cost PER VEHICLE                 excl Vat","VAT","Total Monthly Rental Cost PER VEHICLE incl Vat","Vehicle delivery and Collection charge per vehicle","Excess Km Rate when contracted km exceeded"]
[null,"Light Commercial Vehicles"]
[null,"7 Seat vehicle - for transportation of Postmen with bags",2500,null,null,{"$f":"D5+E5","v":{"v":0,"d":"0.00"}},{"$f":"F5*0.15","v":{"v":0,"d":"0.00"}},{"$f":"G5+F5","v":{"v":0,"d":"0.00"}}]
[null,"7 Seat vehicle - for transportation of Postmen with bags",5000,null,null,{"$f":"D6+E6","v":{"v":0,"d":"0.00"}},{"$f":"F6*0.15","v":{"v":0,"d":"0.00"}},{"$f":"G6+F6","v":{"v":0,"d":"0.00"}}]
[null,"1/2 ton Bakkie with canopy – courier type canopy with NO glass windows",2500,null,null,{"$f":"D7+E7","v":{"v":0,"d":"0.00"}},{"v":0,"d":"0.00"},{"v":0,"d":"0.00"}]
[null,"1 ton  Bakkie with canopy – High rise courier type canopy with NO glass windows",2500,null,null,{"$f":"D8+E8","v":{"v":0,"d":"0.00"}},{"v":0,"d":"0.00"},{"v":0,"d":"0.00"}]
[null,"1 ton  Bakkie with canopy – High rise courier type canopy with NO glass windows",5000,null,null,{"$f":"D9+E9","v":{"v":0,"d":"0.00"}},{"v":0,"d":"0.00"},{"v":0,"d":"0.00"}]
[null,"Heavy Commercial Vehicles"]
[null,"2.5 ton Panel van",2500,null,null,{"$f":"D11+E11","v":{"v":0,"d":"0.00"}},{"v":0,"d":"0.00"},{"$f":"G11+F11","v":{"v":0,"d":"0.00"}}]
[null,"4 ton freight truck with tail lift",2500,null,null,{"$f":"D12+E12","v":{"v":0,"d":"0.00"}},{"v":0,"d":"0.00"},{"v":0,"d":"0.00"}]
[null,"8 ton freight truck with tail lift",2500,null,null,{"$f":"D13+E13","v":{"v":0,"d":"0.00"}},{"v":0,"d":"0.00"},{"v":0,"d":"0.00"}]
[]
[null,"*Other service Costs  (supply breakdown)"]
[1]
[2]
[3]
[4]
["Total Other cost (corresponding with Column G)"]
[]
[null,"The Bidder warrants that the pricing quoted above is free of any errors or omissions and"]
[null," that he/she is able to deliver the contract on the prices quoted."]
[]
[null,"Quote rates Inclusive value added tax (VAT);"]
[]
[null,"NAME OF DELEGATED SIGNATORY (PRINT) :…………………………………………………………………."]
[null,"in his capacity as"]
[]
[null,"DESIGNATION OF SIGNATORY (PRINT) :……………………………………………......................"]
[null,"who warrants his authority to sign on behalf of "]
[]
[null,"NAME OF BIDDER (COMPANY) :……………………………………………………………"]
[]
[null,"DATE :……………………………………………………………"]

{"sheet":"Sheet1","index":6,"n_rows":0,"n_cols":0,"rows_kept":0}

{"sheet":"Sedans","index":7,"n_rows":10,"n_cols":9,"rows_kept":10,"hidden":true,"merged":[[2,0,3,0],[2,1,3,1],[2,2,3,2],[2,3,3,3],[2,4,3,4],[2,5,3,5],[2,6,3,6],[2,7,3,7],[2,8,3,8]]}
["Addendum D"]
[]
["Vehicle Type","Accessories","Average KM per month","Northern","Gauteng","Central","KZN","Eastern Cape","Western cape"]
[]
["Sedans 4 door","1. Radio","2500 - 4999km",{"$f":"13+4","v":17},{"$f":"11+7","v":18},9,12,{"$f":"7+2","v":9},{"$f":"9+2","v":11}]
[null,"2. Aircon"]
[null,"3. Power steering"]
["1.6 engine capacity"]
[]
[null,"New numbers",null,10,13,5,9,8,6]